bitfinex/quotes_ETHUSD_20220118
["timestamp","ask_amount","ask_price","bid_price","bid_amount"]
[1642538730746,1.85550232,3106.3,3106.2,0.06746403]
[1642538731392,2.15550232,3106.3,3106.2,0.06746403]
[1642538732202,3.39212107,3106.3,3106.2,0.06746403]
[1642538732497,3.09212107,3106.3,3106.2,0.00164386]
[1642538733597,1.85550232,3106.3,3106.2,0.00164386]
[1642538734653,2.15550232,3106.3,3106.2,0.00164386]
[1642538735444,2.15550232,3106.3,3105.6,0.465]
[1642538735846,0.00113685,3106.2,3105.7,0.00170527]
[1642538736145,0.00113685,3106.2,3106.1,1.16030863]
[1642538736344,0.00113685,3106.2,3105.8,0.80491]
[1642538740695,0.00113685,3106.2,3105.9,1.75258796]
[1642538741494,0.00113685,3106.2,3105.9,2.75258796]
[1642538742545,0.00113685,3106.2,3105.9,3.21758796]
[1642538742744,0.00113685,3106.2,3105.9,4.32838796]
[1642538743542,1.15147555,3106.7,3106.0,6.40466]
[1642538743741,1.15147555,3106.7,3106.1,1.30517523]
[1642538743942,0.00227369,3106.6,3106.2,1.11584481]
[1642538744242,0.1287,3107.4,3106.5,4.75]
[1642538744243,0.08097369,3107.4,3106.5,4.75]
[1642538744443,0.08097369,3107.4,3106.5,5.215]
[1642538744644,0.00397897,3107.3,3106.6,1.0]
[1642538744945,0.00341054,3107.2,3106.7,1.26965]
[1642538745147,0.00341054,3107.2,3106.8,0.8045778]
[1642538745343,0.00284212,3107.1,3106.9,0.465]
[1642538745745,3.17267329,3107.8,3106.9,0.465]
[1642538745746,0.0022737,3107.0,3106.9,0.465]
[1642538745988,0.0022737,3107.0,3106.9,1.26952]
[1642538746889,0.0022737,3107.0,3106.9,2.26952]
[1642538747087,0.0022737,3107.0,3106.9,3.46615237]
[1642538748494,0.0022737,3107.0,3106.9,4.27071947]
[1642538748895,0.0022737,3107.0,3106.9,3.46615237]
[1642538749651,0.0022737,3107.0,3106.9,0.465]
[1642538750642,0.0022737,3107.0,3106.9,2.2797182]
[1642538750844,0.0022737,3107.0,3106.9,0.465]
[1642538751244,0.0022737,3107.0,3106.4,2.87003]
[1642538751446,0.0022737,3107.0,3106.4,1.73813]
[1642538751646,0.93527527,3106.9,3106.3,0.00170527]
[1642538752045,0.00113685,3106.8,3106.2,0.00227369]
[1642538752244,2.38992549,3106.7,3106.1,0.00284211]
[1642538752847,2.38992549,3106.7,3105.9,0.00397896]
[1642538753692,0.80495,3106.4,3105.9,1.67868217]
[1642538754093,0.80495,3106.4,3106.0,0.00341054]
[1642538754493,0.80495,3106.4,3105.9,0.80890936]
[1642538754693,0.80495,3106.4,3106.0,0.80833054]
[1642538755096,0.80495,3106.4,3106.1,0.00284211]
[1642538755295,0.80495,3106.4,3106.1,0.80770091]
[1642538755696,0.80495,3106.4,3106.2,0.00227369]
[1642538755895,1.93113875,3106.3,3106.2,0.00227369]
[1642538756096,1.93113875,3106.3,3105.9,0.00397896]
[1642538756097,2.73606875,3106.3,3105.9,0.00397896]
[1642538756300,2.73295014,3106.2,3105.9,0.00397896]
[1642538756496,0.1287,3106.2,3105.9,0.00397896]
[1642538756696,3.93067275,3106.2,3105.9,0.00397896]
[1642538757160,3.93067275,3106.2,3105.7,0.00511581]
[1642538757161,5.03572275,3106.2,3105.7,0.00511581]
[1642538757348,0.8051,3106.0,3105.7,0.00511581]
[1642538757546,3.22046,3106.1,3105.2,10.0699669]
[1642538757547,1.68070225,3105.8,3105.3,0.0073895]
[1642538757745,1.61027,3106.1,3105.3,1.14504612]
[1642538757746,0.1288,3106.0,3105.3,1.14504612]
[1642538757948,0.4288,3106.0,3105.3,1.14504612]
[1642538758151,0.4288,3106.0,3105.4,0.00682108]
[1642538758349,0.80513,3105.8,3105.4,0.00682108]
[1642538758548,0.93383,3105.8,3105.4,0.00682108]
[1642538759547,0.93383,3105.8,3105.5,2.10003745]
[1642538759748,0.93383,3105.8,3105.5,2.90508415]
[1642538759948,0.93383,3105.8,3105.6,0.00568423]
[1642538759949,0.1287,3105.8,3105.6,0.00568423]
[1642538760154,0.1287,3105.8,3105.6,1.47068423]
[1642538760449,1.55152344,3106.4,3105.7,0.00511581]
[1642538760898,2.35640344,3106.4,3105.7,0.00511581]
[1642538761105,0.80488,3106.4,3106.1,1.34576437]
[1642538761403,0.80488,3106.4,3106.2,0.00227369]
[1642538761802,3.30332725,3106.8,3106.2,0.00227369]
[1642538762004,3.17462725,3106.8,3106.2,0.00227369]
[1642538762203,0.80481,3106.7,3106.2,0.80713919]
[1642538762604,0.80481,3106.7,3106.3,0.00170527]
[1642538762805,0.93351,3106.7,3106.3,0.80652527]
[1642538763006,0.80481,3106.7,3106.3,0.80652527]
[1642538763209,0.12983685,3106.8,3106.4,0.00113684]
[1642538763407,0.00113685,3106.8,3106.4,0.00113684]
[1642538763609,0.00609664,3106.7,3106.4,0.00113684]
[1642538763808,1.18165863,3106.6,3106.4,0.00113684]
[1642538764411,2.79157863,3106.6,3106.2,0.00227369]
[1642538764665,0.1287,3106.5,3106.0,0.00341054]
[1642538764861,0.93378,3106.5,3106.0,0.00341054]
[1642538765060,0.93378,3106.5,3105.9,0.00397896]
[1642538765256,0.93378,3106.5,3106.1,2.34167779]
[1642538765460,0.80497,3106.4,3106.1,2.34167779]
[1642538765661,0.1287,3106.3,3106.2,0.00227369]
[1642538765862,0.80497,3106.4,3106.2,0.00227369]
[1642538766060,1.98662863,3106.4,3106.2,0.00227369]
[1642538766661,1.98662863,3106.4,3105.8,2.00649026]
[1642538766662,2.28662863,3106.4,3105.9,0.00397896]
[1642538766862,1.31035863,3106.3,3106.2,0.00227369]
[1642538767063,2.11538863,3106.3,3105.9,0.00397896]
[1642538767461,2.11538863,3106.3,3105.8,2.56788021]
[1642538767661,2.11538863,3106.3,3105.8,0.80951738]
[1642538767861,2.11538863,3106.3,3105.9,0.00397896]
[1642538768263,1.18165863,3106.2,3105.9,0.00397896]
[1642538768495,1.98662863,3106.2,3106.0,1.30700757]
[1642538768691,1.98662863,3106.2,3106.0,4.39714558]
[1642538768894,1.98662863,3106.2,3106.1,0.00284211]
[1642538769896,1.18165863,3106.2,3106.1,0.00284211]
[1642538771801,1.18165863,3106.2,3106.1,2.65061132]
[1642538772449,1.18165863,3106.2,3106.1,5.85061132]
[1642538772653,1.55266029,3106.8,3106.1,5.85061132]
[1642538772654,1.55266029,3106.8,3106.3,5.6]
[1642538772853,1.55266029,3106.8,3106.4,3.79036932]
[1642538773052,3.09553639,3107.2,3106.6,5.6]
[1642538773254,3.09553639,3107.2,3106.7,0.1287]
[1642538773454,7.71689997,3107.9,3106.9,3.55]
[1642538773455,3.09553639,3107.3,3106.9,3.55]
[1642538773656,3.06148684,3107.3,3106.9,3.55]
[1642538774053,3.01148684,3107.3,3107.0,0.80457]
[1642538774453,0.00284212,3107.6,3107.4,1.20886313]
[1642538774654,0.00284212,3107.6,3106.9,3.346885]
[1642538774853,0.00227369,3107.5,3106.9,3.218185]
[1642538775054,0.80699369,3107.5,3106.9,3.218185]
[1642538775255,0.80635527,3107.4,3106.8,0.00170527]
[1642538775458,0.1287,3107.3,3106.8,0.00170527]
[1642538775656,0.12983685,3107.3,3106.9,1.45318222]
[1642538776297,3.78069369,3107.2,3106.9,1.45318222]
[1642538776494,0.1287,3107.1,3106.9,1.45318222]
[1642538776693,0.93346,3107.1,3106.9,1.45318222]
[1642538778099,0.80476,3107.1,3106.9,6.58075628]
[1642538778905,0.93346,3107.1,3106.9,3.2]
[1642538779749,0.93346,3107.1,3106.9,0.16741705]
[1642538780952,0.1287,3107.1,3106.9,0.16741705]
[1642538781151,0.00113685,3107.3,3107.2,2.07349035]
[1642538782153,0.00113685,3107.3,3107.2,3.24931964]
[1642538784012,0.00113685,3107.3,3106.9,0.29611705]
[1642538784213,0.8048,3107.2,3106.9,0.16741705]
[1642538785010,1.60962,3107.2,3106.9,0.16741705]
[1642538785210,1.60962,3107.2,3107.0,1.9401295]
[1642538785408,1.60962,3107.2,3107.0,3.16077889]
[1642538786210,1.58227822,3107.1,3107.0,3.16077889]
[1642538786814,1.58227822,3107.1,3107.0,1.9401295]
[1642538787010,1.58227822,3107.1,3106.9,0.16741705]
[1642538787255,3.49191822,3107.1,3106.9,0.16741705]
[1642538790761,5.28939135,3107.1,3106.9,0.16741705]
[1642538790998,3.49191822,3107.1,3106.9,0.16741705]
[1642538791202,1.90964,3107.1,3106.9,0.16741705]
[1642538791502,1.60964,3107.1,3107.0,1.19090369]
[1642538791701,2.51577822,3107.2,3107.0,1.19090369]
[1642538791901,1.71097822,3107.2,3107.0,1.19090369]
[1642538792301,0.1287,3107.2,3107.0,1.19090369]
[1642538793503,0.1287,3107.2,3107.0,1.99554369]
[1642538793504,0.67672637,3107.1,3107.0,1.99554369]
[1642538793702,0.67672637,3107.1,3107.0,2.12424369]
[1642538795249,0.67672637,3107.1,3107.0,4.30853089]
[1642538796053,0.67672637,3107.1,3107.0,3.1176272]
[1642538796454,0.67672637,3107.1,3106.9,0.97214665]
[1642538796654,0.67672637,3107.1,3106.9,0.16741705]
[1642538797459,0.67672637,3107.1,3107.0,3.72841848]
[1642538798397,0.67672637,3107.1,3107.0,2.32151033]
[1642538798603,0.67672637,3107.1,3107.0,2.45021033]
[1642538799002,0.67672637,3107.1,3107.0,3.45021033]
[1642538799404,0.00113685,3107.3,3107.0,5.43903492]
[1642538799605,0.00113685,3107.3,3107.2,0.80455]
[1642538801107,0.00113685,3107.3,3107.2,1.10455]
[1642538801310,1.58227822,3107.8,3107.3,5.6]
[1642538801508,1.58227822,3107.8,3107.4,1.56936]
[1642538801708,0.00170527,3107.6,3107.4,2.56936]
[1642538802150,0.00113684,3107.5,3107.4,2.56936]
[1642538802353,0.00113684,3107.5,3107.4,5.46936]
[1642538802547,0.00227369,3107.5,3107.4,5.46936]
[1642538803246,0.00227369,3107.5,3107.4,2.56936]
[1642538803451,0.00227369,3107.5,3107.4,8.37900974]
[1642538803651,0.00227369,3107.5,3107.4,8.50770974]
[1642538803852,0.00227369,3107.5,3107.4,8.5400868]
[1642538804552,0.00227369,3107.5,3107.4,5.6900868]
[1642538804751,0.00227369,3107.5,3107.4,5.65770974]
[1642538804955,0.00227369,3107.5,3107.4,4.85334974]
[1642538805151,0.00227369,3107.5,3107.4,4.56702391]
[1642538805353,0.00227369,3107.5,3107.4,4.46308404]
[1642538805652,0.00227369,3107.5,3107.4,1.765]
[1642538806096,0.00227369,3107.5,3107.4,0.465]
[1642538806494,0.00227369,3107.5,3107.4,0.765]
[1642538806894,0.00227369,3107.5,3107.4,0.465]
[1642538808299,0.80676369,3107.5,3107.1,1.3]
[1642538808500,1.61125369,3107.5,3107.1,1.3]
[1642538810060,1.61125369,3107.5,3107.1,1.0]
[1642538810468,0.1287,3107.4,3107.0,1.68882459]
[1642538810861,0.1287,3107.4,3107.1,0.00113685]
[1642538810862,2.54282,3107.4,3107.1,0.00113685]
[1642538811063,1.6093,3107.3,3107.1,0.00113685]
[1642538813263,0.80478,3107.2,3107.0,0.00170527]
[1642538813998,0.80478,3107.2,3107.0,1.74465117]
[1642538814298,0.80478,3107.2,3107.0,0.00170527]
[1642538815498,0.58942162,3107.1,3107.0,0.00170527]
[1642538815898,0.58942162,3107.1,3107.0,2.20236665]
[1642538816599,0.71812162,3107.1,3107.0,2.20236665]
[1642538816799,2.32783162,3107.1,3106.9,0.16741705]
[1642538816999,0.1287,3107.0,3106.9,0.16741705]
[1642538817651,2.32783162,3107.1,3106.9,0.16741705]
[1642538818151,0.58942162,3107.0,3106.9,0.16741705]
[1642538819657,1.01812162,3107.0,3106.9,0.16741705]
[1642538819853,1.26702162,3107.0,3106.9,0.16741705]
[1642538820052,5.6,3106.9,3106.1,4.8319]
[1642538820253,0.80494,3106.7,3106.1,4.8319]
[1642538820454,0.80494,3106.7,3105.9,3.31854176]
[1642538820455,0.80494,3106.7,3106.2,0.00454739]
[1642538820652,0.80494,3106.7,3106.3,1.9940589]
[1642538821100,0.80494,3106.7,3106.4,0.00341054]
[1642538821500,1.60985,3106.6,3106.4,1.47490005]
[1642538821899,1.60985,3106.6,3106.5,0.00284212]
[1642538822303,2.19927162,3106.6,3106.5,0.00284212]
[1642538824106,0.80494,3106.7,3106.6,5.6]
[1642538824107,0.78426993,3106.7,3106.6,5.6]
[1642538824304,0.78426993,3106.7,3106.6,5.7287]
[1642538824505,0.78426993,3106.7,3106.6,0.1309737]
[1642538824747,0.78426993,3106.7,3106.6,0.0022737]
[1642538826747,0.78426993,3106.7,3106.5,0.00284212]
[1642538826948,0.73426993,3106.7,3106.5,0.00284212]
[1642538827854,1.64636226,3106.6,3106.5,0.00284212]
[1642538828263,0.80502,3106.4,3105.7,14.52081686]
[1642538828512,0.80502,3106.4,3106.3,0.00113685]
[1642538828513,1.10502,3106.4,3106.3,0.00113685]
[1642538828915,0.80502,3106.4,3106.0,0.00284212]
[1642538829317,0.80502,3106.4,3105.8,0.00397896]
[1642538829318,1.10502,3106.4,3105.8,0.00397896]
[1642538829516,0.80508,3106.2,3105.8,0.00397896]
[1642538829716,2.54398,3106.2,3105.7,0.00454739]
[1642538829915,2.54398,3106.2,3105.6,0.00511581]
[1642538830117,2.84398,3106.2,3105.7,1.66418669]
[1642538830316,2.84398,3106.2,3105.5,0.00568423]
[1642538830520,2.84398,3106.2,3105.8,0.00397896]
[1642538830717,2.84398,3106.2,3105.4,1.00625266]
[1642538830718,0.80503,3106.0,3105.4,1.00625266]
[1642538830921,0.80503,3106.0,3105.4,0.00625266]
[1642538831119,0.80503,3106.0,3105.5,0.00568423]
[1642538831319,0.80503,3106.0,3105.4,3.20625266]
[1642538831619,0.80503,3106.0,3105.5,0.13438423]
[1642538832019,0.80503,3106.0,3105.6,0.00511581]
[1642538832652,0.80503,3106.0,3105.9,1.78461357]
[1642538832853,2.41516,3106.1,3105.9,1.78461357]
[1642538833052,2.41516,3106.1,3105.9,0.00341054]
[1642538833253,2.41516,3106.1,3106.0,0.00284212]
[1642538833456,2.41516,3106.1,3105.6,0.00511581]
[1642538834554,1.61001,3106.0,3105.6,0.00511581]
[1642538835355,1.61001,3106.0,3105.6,0.81002581]
[1642538835756,1.61001,3106.0,3105.7,2.14283754]
[1642538836200,1.61001,3106.0,3105.8,0.00397896]
[1642538837506,1.61001,3106.0,3105.9,0.1287]
[1642538837708,0.805,3106.0,3105.8,0.13267896]
[1642538837908,0.805,3106.0,3105.9,0.00341054]
[1642538838208,0.805,3106.0,3105.8,0.00397896]
[1642538838408,2.41516,3106.1,3105.8,0.00397896]
[1642538838809,2.41516,3106.1,3105.6,0.00511581]
[1642538839009,0.3,3106.0,3105.6,0.00511581]
[1642538839213,0.3,3106.0,3105.2,6.74171686]
[1642538839214,4.75,3105.9,3105.2,6.74171686]
[1642538839510,5.68559527,3105.9,3105.3,0.00170527]
[1642538839752,4.95,3105.8,3105.0,2.76171686]
[1642538839951,8.17380212,3105.8,3105.0,2.76171686]
[1642538840156,1.45387434,3105.2,3105.1,0.00113685]
[1642538840351,2.29097434,3105.2,3105.1,0.00113685]
[1642538840550,2.29097434,3105.2,3105.1,1.76776787]
[1642538840753,2.59097434,3105.2,3105.1,0.00113685]
[1642538840951,3.55,3105.1,3104.4,1.63197223]
[1642538841156,0.80538,3105.0,3104.4,1.63197223]
[1642538841351,0.9342,3104.9,3104.8,3.2]
[1642538841553,2.8,3104.8,3104.4,1.63197223]
[1642538841752,3.07122802,3104.8,3104.4,1.63197223]
[1642538841953,1.61198685,3104.7,3104.4,1.63197223]
[1642538842557,4.02826685,3104.7,3104.2,2.44739477]
[1642538842756,4.02826685,3104.7,3104.1,0.1288]
[1642538842957,2.41634,3104.6,3104.3,0.00113685]
[1642538843597,2.41634,3104.6,3104.1,0.00227369]
[1642538843801,3.22174,3104.6,3104.1,0.00227369]
[1642538844096,0.80537,3104.5,3104.1,0.00227369]
[1642538844496,0.80537,3104.5,3104.2,2.06931989]
[1642538845400,0.80537,3104.5,3104.1,2.00529775]
[1642538845401,1.61074,3104.5,3104.1,2.00529775]
[1642538845798,1.61076,3104.4,3104.2,0.00170527]
[1642538848056,1.61076,3104.4,3104.2,2.00472933]
[1642538848960,1.61076,3104.4,3104.2,0.00170527]
[1642538849355,1.61076,3104.4,3104.1,0.00227369]
[1642538849558,1.61078,3104.3,3104.1,0.00227369]
[1642538849855,2.41614,3104.3,3104.1,0.00227369]
[1642538850057,0.80537,3104.5,3104.2,0.1288]
[1642538850256,0.80515,3104.6,3104.2,3.49978022]
[1642538850457,0.12993685,3104.7,3104.2,3.79978022]
[1642538850655,0.12993685,3104.7,3104.3,1.0]
[1642538850902,0.93506685,3104.7,3104.5,2.76032588]
[1642538851106,0.93506685,3104.7,3104.6,6.6438]
[1642538851305,0.93506685,3104.7,3104.6,9.64408876]
[1642538851540,3.22046,3105.1,3104.6,9.64408876]
[1642538851541,1.61023,3105.1,3104.6,9.64408876]
[1642538851706,1.61023,3105.1,3104.6,9.65706879]
[1642538851908,0.00170527,3105.0,3104.6,11.66009285]
[1642538852308,0.00113684,3104.9,3104.6,11.66009285]
[1642538852511,0.00113684,3104.9,3104.7,1.6100878]
[1642538852712,0.00113684,3104.9,3104.8,8.96474025]
[1642538853009,0.00113684,3104.9,3104.8,9.26474025]
[1642538853209,0.00113684,3104.9,3104.8,10.26474025]
[1642538853410,0.80502,3105.2,3104.9,5.6]
[1642538853611,1.61011,3105.3,3105.1,0.80507]
[1642538853810,1.6123837,3105.3,3105.2,3.2788]
[1642538854309,1.6123837,3105.3,3105.2,4.2788]
[1642538854508,1.6123837,3105.3,3105.1,2.51917034]
[1642538854751,1.6123837,3105.3,3105.2,1.0]
[1642538854951,1.61011,3105.3,3105.2,1.0]
[1642538856358,3.04402583,3105.3,3105.2,1.0]
[1642538857557,3.04402583,3105.3,3105.1,0.465]
[1642538857960,0.00170527,3105.2,3105.1,0.465]
[1642538860202,0.00170527,3105.2,3104.6,0.14178003]
[1642538860404,0.00170527,3105.2,3104.4,5.78591686]
[1642538860405,0.93407,3105.1,3104.4,5.78591686]
[1642538860605,0.80529,3105.0,3104.7,0.00113684]
[1642538860804,0.1288,3104.9,3104.5,0.00227369]
[1642538861403,1.32458801,3104.8,3104.6,2.07085437]
[1642538861805,1.32458801,3104.8,3104.7,0.00113684]
[1642538862860,1.32458801,3104.8,3104.7,2.00364708]
[1642538863060,1.32458801,3104.8,3104.7,2.00251024]
[1642538863261,1.32458801,3104.8,3104.7,2.00364708]
[1642538864363,1.32458801,3104.8,3104.7,0.00113684]
[1642538864760,1.32458801,3104.8,3104.6,3.2]
[1642538864960,2.26455445,3104.7,3104.6,2.00251024]
[1642538865161,1.32458801,3104.8,3104.6,2.00251024]
[1642538865560,1.32458801,3104.8,3104.1,1.4288]
[1642538865561,0.80535,3104.7,3104.1,1.4288]
[1642538865760,0.80539,3104.6,3104.1,1.4288]
[1642538866000,0.80539,3104.6,3104.2,0.00284212]
[1642538866199,0.80539,3104.6,3104.3,2.15308496]
[1642538866601,1.61076,3104.6,3104.4,0.00170527]
[1642538867806,1.61076,3104.6,3104.5,0.1288]
[1642538868203,1.61076,3104.6,3104.5,0.12993685]
[1642538869852,1.61076,3104.6,3104.5,0.59493685]
[1642538870252,1.61018,3105.0,3104.5,3.31593084]
[1642538870554,0.80616685,3104.9,3104.6,1.0]
[1642538870754,0.80616685,3104.9,3104.7,0.5938]
[1642538870955,0.80503,3104.9,3104.7,3.33541111]
[1642538871153,0.80503,3104.9,3104.8,1.0]
[1642538871354,0.80503,3104.9,3104.8,1.465]
[1642538871552,0.80616684,3104.9,3104.8,5.415]
[1642538871952,0.80616684,3104.9,3104.8,8.12811514]
[1642538872156,0.80616684,3104.9,3104.8,8.1501867]
[1642538872356,0.80616684,3104.9,3104.8,8.2789867]
[1642538873157,0.00113684,3104.9,3104.8,8.2789867]
[1642538873400,0.00113684,3104.9,3104.8,9.8889667]
[1642538874602,0.00113684,3104.9,3104.8,11.78808698]
[1642538876707,5.46286567,3106.6,3104.9,6.4048971]
[1642538876708,1.73862,3105.7,3104.9,6.4048971]
[1642538876906,1.60958,3106.1,3105.6,5.818]
[1642538877164,1.57375472,3106.4,3105.7,0.5937]
[1642538877361,1.57375472,3106.4,3105.7,2.02346956]
[1642538877556,1.19771304,3106.3,3105.8,2.07743646]
[1642538877758,0.00795793,3106.3,3105.9,0.465]
[1642538877957,0.00738951,3106.2,3105.9,0.465]
[1642538878157,0.00738951,3106.2,3105.9,1.765]
[1642538878356,3.18311472,3106.4,3106.0,1.6093202]
[1642538878357,0.00682109,3106.1,3106.0,1.6093202]
[1642538878557,0.00682109,3106.1,3106.0,7.6743202]
[1642538878758,0.00682109,3106.1,3106.0,8.9743202]
[1642538878956,0.00682109,3106.1,3106.0,11.84015817]
[1642538879357,0.00682109,3106.1,3106.0,11.87050704]
[1642538879557,0.00682109,3106.1,3106.0,11.87478959]
[1642538879762,0.00682109,3106.1,3106.0,11.84015817]
[1642538880364,0.00682109,3106.1,3106.0,11.87212958]
[1642538880562,0.00682109,3106.1,3106.0,11.87687668]
[1642538881599,0.00682109,3106.1,3106.0,11.84015817]
[1642538883606,2.109e-05,3106.1,3106.0,15.04015817]
[1642538883809,0.1287,3106.8,3106.1,5.6]
[1642538884009,0.1287,3106.8,3106.5,5.818]
[1642538884206,0.1287,3106.8,3106.6,0.465]
[1642538884666,0.1287,3106.8,3106.7,7.02205858]
[1642538884854,0.1287,3106.8,3106.7,7.48705858]
[1642538885053,0.13267896,3106.8,3106.7,9.18572656]
[1642538885752,1.29940525,3107.4,3106.7,9.18572656]
[1642538885753,1.29940525,3107.4,3106.8,5.6]
[1642538885954,1.29940525,3107.4,3106.9,0.465]
[1642538886154,0.00284212,3107.3,3106.9,4.68282]
[1642538886354,0.80731212,3107.3,3106.9,1.765]
[1642538886555,1.61136369,3107.2,3106.9,0.765]
[1642538886755,1.61136369,3107.2,3106.9,0.465]
[1642538886955,0.00170527,3107.1,3106.9,0.765]
[1642538887156,0.13040527,3107.1,3106.9,0.765]
[1642538887358,0.00113685,3107.0,3106.9,0.765]
[1642538888408,0.00113685,3107.0,3106.9,0.465]
[1642538888409,2.55113685,3107.0,3106.9,0.465]
[1642538888613,3.48462685,3107.0,3106.2,0.5937]
[1642538888813,2.54297,3106.9,3106.2,0.5937]
[1642538889014,2.54297,3106.9,3106.3,0.00284212]
[1642538889412,2.54297,3106.9,3106.4,2.24887945]
[1642538889614,2.54297,3106.9,3106.5,0.80468]
[1642538889815,0.80474,3106.8,3106.7,1.51527302]
[1642538890214,0.80474,3106.8,3106.6,1.76613685]
[1642538890414,0.80474,3106.8,3106.6,0.76613685]
[1642538890623,0.80474,3106.8,3106.6,1.76613685]
[1642538890815,0.80474,3106.8,3106.6,0.76613685]
[1642538891017,0.80474,3106.8,3106.6,1.76613685]
[1642538891819,0.75474,3106.8,3106.6,1.76613685]
[1642538892655,0.75474,3106.8,3106.6,0.76613685]
[1642538892853,0.75474,3106.8,3106.6,1.76613685]
[1642538893257,0.75474,3106.8,3106.6,3.96613685]
[1642538893455,2.23408792,3106.8,3106.6,3.66613685]
[1642538893654,2.36278792,3106.8,3106.6,3.66613685]
[1642538894655,2.23408792,3106.8,3106.6,3.66613685]
[1642538894855,2.23408792,3106.8,3106.7,1.0]
[1642538894856,1.47934792,3106.8,3106.7,1.0]
[1642538895256,1.47934792,3106.8,3106.6,3.66613685]
[1642538895659,1.77934792,3106.8,3106.6,3.20113685]
[1642538895916,0.1287,3106.7,3106.6,3.20113685]
[1642538896111,0.1287,3106.7,3106.2,0.128822]
[1642538896311,3.05373769,3106.6,3106.2,1.128822]
[1642538896508,3.05373769,3106.6,3106.3,0.00170527]
[1642538897915,0.80492,3106.6,3106.3,0.00170527]
[1642538901162,0.80492,3106.6,3106.4,2.34347419]
[1642538901758,0.80492,3106.6,3106.3,0.00170527]
[1642538901960,0.1287,3106.5,3106.3,0.00170527]
[1642538902161,2.77941,3106.5,3106.1,0.00284211]
[1642538902364,3.05909007,3106.4,3106.0,0.00341054]
[1642538902565,3.05909007,3106.4,3105.5,0.00625265]
[1642538902566,0.4287,3106.3,3105.5,0.00625265]
[1642538902764,2.22254638,3105.9,3105.5,0.00625265]
[1642538902964,1.54018,3105.9,3105.4,0.00682108]
[1642538903265,1.84018,3105.9,3105.4,0.00682108]
[1642538903502,1.84018,3105.9,3105.4,3.20682108]
[1642538903707,0.80509,3105.8,3105.4,3.20682108]
[1642538903905,0.80509,3105.8,3105.5,0.00625265]
[1642538904102,0.80509,3105.8,3105.3,0.1287]
[1642538904103,4.85509,3105.8,3105.3,0.1287]
[1642538904303,0.00113685,3105.7,3105.5,1.97684074]
[1642538904502,0.00113685,3105.7,3105.3,0.1287]
[1642538904703,1.61028,3105.5,3105.3,0.1287]
[1642538905505,2.41539,3105.5,3105.1,0.1288]
[1642538905705,0.80512,3105.4,3105.1,0.1288]
[1642538905904,0.80512,3105.4,3105.2,2.00959311]
[1642538906307,0.80512,3105.4,3105.3,0.00113685]
[1642538906308,2.41533,3105.4,3105.3,0.00113685]
[1642538906504,1.61021,3105.4,3105.3,0.00113685]
[1642538906807,1.61021,3105.4,3105.0,0.128869]
[1642538906809,2.10831,3105.4,3105.0,0.128869]
[1642538907007,0.4288,3105.3,3105.0,0.128869]
[1642538907262,6.71065,3105.1,3104.4,2.68556264]
[1642538907461,4.13998,3105.1,3104.4,2.55676264]
[1642538907659,0.3,3105.0,3104.5,2.33123602]
[1642538907860,2.52945,3105.1,3104.5,2.33123602]
[1642538908060,0.80527,3105.0,3104.6,0.00284212]
[1642538908865,1.61062,3104.9,3104.6,0.00284212]
[1642538909061,2.41593,3104.9,3104.6,0.00284212]
[1642538911414,2.41593,3104.9,3104.6,0.13164212]
[1642538911610,2.41593,3104.9,3104.7,0.80514]
[1642538911812,0.80531,3104.9,3104.7,0.80741369]
[1642538912111,0.80531,3104.9,3104.8,0.00170527]
[1642538912515,0.80514,3105.0,3104.8,0.00170527]
[1642538912715,0.80514,3105.0,3104.8,0.80676457]
[1642538913115,0.80514,3105.0,3104.9,0.00113685]
[1642538913318,2.41527,3105.1,3104.9,0.00113685]
[1642538913516,2.41527,3105.1,3105.0,1.20110928]
[1642538913919,1.6103,3105.0,3104.8,0.20170527]
[1642538914116,3.22064,3105.0,3104.8,0.20170527]
[1642538914318,3.22064,3105.0,3104.9,0.00113685]
[1642538917472,3.22064,3105.0,3104.6,0.1288]
[1642538917473,3.64944,3105.0,3104.5,0.465]
[1642538917674,3.64944,3105.0,3104.1,6.20014691]
[1642538917675,0.80544,3104.7,3104.1,6.20014691]
[1642538917874,0.80544,3104.7,3104.6,0.00170527]
[1642538918075,0.80545,3104.6,3104.1,0.593905]
[1642538918274,0.80545,3104.6,3104.2,0.00227369]
[1642538919412,0.80545,3104.5,3104.2,0.00227369]
[1642538919614,1.61079,3104.5,3104.2,0.00227369]
[1642538920712,1.61079,3104.5,3104.2,0.13107369]
[1642538921214,1.61079,3104.5,3104.3,0.00170527]
[1642538921815,1.61079,3104.5,3104.3,1.31618201]
[1642538922014,1.61079,3104.5,3104.3,1.61618201]
[1642538922259,1.61079,3104.5,3104.4,0.00113684]
[1642538922756,1.61079,3104.5,3104.4,0.46613684]
[1642538922957,1.61031,3104.7,3104.5,2.70661752]
[1642538923160,1.61031,3104.7,3104.5,3.17161752]
[1642538923161,0.80516,3104.7,3104.5,3.17161752]
[1642538923358,0.80516,3104.7,3104.6,1.0]
[1642538923757,0.80516,3104.7,3104.6,3.07744677]
[1642538927008,0.80516,3104.7,3104.6,3.20624677]
[1642538927212,0.80516,3104.7,3104.6,3.67124677]
[1642538928012,0.80516,3104.7,3104.6,3.54244677]
[1642538933602,2.31156018,3104.7,3104.6,3.54244677]
[1642538935006,1.50640018,3104.7,3104.6,4.34764677]
[1642538937157,1.50640018,3104.7,3104.6,3.54244677]
[1642538938358,1.50640018,3104.7,3104.6,2.54244677]
[1642538938758,2.51660018,3104.7,3104.6,2.07744677]
[1642538940160,4.75142348,3104.7,3104.6,2.07744677]
[1642538940563,4.75142348,3104.7,3104.4,2.07858361]
[1642538940564,5.55676348,3104.7,3104.4,2.07858361]
[1642538940762,6.49090348,3104.7,3104.4,2.07858361]
[1642538941412,6.49090348,3104.7,3104.4,0.00113684]
[1642538941813,4.25608018,3104.7,3104.4,0.00113684]
[1642538942015,4.25608018,3104.7,3104.3,0.00170527]
[1642538942315,4.12728018,3104.7,3104.3,0.00170527]
[1642538943017,0.80543,3104.5,3104.0,0.03424581]
[1642538943217,4.2,3104.3,3103.6,0.1288]
[1642538943415,2.8106199,3104.2,3104.1,0.00113684]
[1642538943613,0.1288,3104.2,3104.1,0.00113684]
[1642538944013,3.35363648,3104.2,3104.1,0.00113684]
[1642538944214,3.65363648,3104.2,3104.1,0.00113684]
[1642538944859,3.52483648,3104.2,3104.1,0.00113684]
[1642538945256,3.52483648,3104.2,3103.6,2.09290118]
[1642538945458,0.80545,3104.1,3103.6,0.00397896]